Company(T),Trans.date,Supplier Name(T),TransNo,Amount,Irrecoverable VAT,Service/Dept(T),Procurement Category,Account code,Account code(T),Narrative/Purpose of Spend,Govt Procurement Card
East Cambridgeshire District Council,01/04/2016,East of England Local Government Association,635311,"1,250.00",,Training,Employees,1130,Training - In House,Staff Appraisal Assistance 21/3/16,
East Cambridgeshire District Council,06/04/2016,Maybo,635357,"3,960.00",,Training,Employees,1130,Training - In House,"Initial Conflict Management Training 5,11&14/4/16 & 10/5/16",
East Cambridgeshire District Council,25/04/2016,East of England Local Government Association,635532,"1,250.00",,Training,Employees,1130,Training - In House,Staff Appraisal Training 2 Days April 2016,
East Cambridgeshire District Council,23/03/2016,Oak Tree Management & Training Ltd,635331,998,,Planning,Employees,1135,Training - External,Presentation skills 8/4/16,
East Cambridgeshire District Council,11/04/2016,Trevor Roberts Associates,635423,935,,Planning,Employees,1135,Training - External,Planning Enforcement & Material Change of Use-Redacted Personal Data 18-19/4 & 6-7/6/16,
East Cambridgeshire District Council,06/04/2016,Ironmongery ,5105066,26.75,,The Grange,Premises,2010,Premises Materials, 2x Door Handles,Y
East Cambridgeshire District Council,21/04/2016,C D Clowe,635482,950,,The Grange,Premises,2020,Premises Contract Work,Installation of LED Emergency Bulkheads in Entrance Area,
East Cambridgeshire District Council,24/04/2016,C D Clowe,635524,652,,E Space North,Premises,2020,Premises Contract Work,E-Space North 23/4/16,
East Cambridgeshire District Council,04/04/2016,Prior Associates,635337,"1,200.00",,Oliver Cromwell House,Premises,2030,Premises Asset Management,OCH Fee as per quote,
East Cambridgeshire District Council,18/04/2016,Skanska Construction UK Ltd,635458,"7,144.81",,Open Spaces,Premises,2030,Premises Asset Management,Surfacing - Manor Court Witchford & Meadow Close Witchford,
East Cambridgeshire District Council,18/04/2016,Skanska Construction UK Ltd,635458,"9,171.91",,Asset Management,Premises,2030,Premises Asset Management,Surfacing - Manor Court Witchford & Meadow Close Witchford,
East Cambridgeshire District Council,24/04/2016,C D Clowe,635523,743.1,,Parks And Open Spaces,Premises,2030,Premises Asset Management,Update Street Light Heads - Elmside Littleport,
East Cambridgeshire District Council,28/04/2016,Airelec Maintenance Ltd,635558,"5,408.00",,Asset Management,Premises,2030,Premises Asset Management,Replacement works Apr 2016,
East Cambridgeshire District Council,04/04/2016,E.ON UK plc,1133914,"1,057.02",,Parking Of Vehicles,Premises,2110,Electricity,011397609520 St/Lighting-Car Parks,
East Cambridgeshire District Council,22/04/2016,Southern Electric,1134142,502.3,,"PC Cloisters, Ely",Premises,2110,Electricity,4229351217 Public Toilets The Cloisters Ely,
East Cambridgeshire District Council,22/04/2016,Southern Electric,1134143,"1,481.32",,Portley Hill Littleport Depot,Premises,2110,Electricity,4229351217 Littleport Depot,
East Cambridgeshire District Council,22/04/2016,Southern Electric,1134144,662.65,,The Grange,Premises,2110,Electricity,4229351217 Office Services,
East Cambridgeshire District Council,13/04/2016,Southern Electric,1133987,"-1,910.00",,E Space North,Premises,2110,Electricity,481606759 E-Space North,
East Cambridgeshire District Council,13/04/2016,ESPO,1133993,"1,196.81",,The Grange,Premises,2120,Gas,M040A0173612A6 The Grange,
East Cambridgeshire District Council,13/04/2016,ESPO,1133996,677.76,,E Space North,Premises,2120,Gas,M025A0234205A6 E-Space North,
East Cambridgeshire District Council,01/04/2016,Melrose Press Ltd,635286,875,,E Space South,Premises,2215,Leases,Use of 10 Parking Spaces 1/4/16-30/6/16,
East Cambridgeshire District Council,01/04/2016,East Cambs District Council,1133834,"2,395.80",,Portley Hill Littleport Depot,Premises,2310,General Rates,"Barton Road, Ely",
East Cambridgeshire District Council,01/04/2016,East Cambs District Council,1133835,"15,282.75",,Portley Hill Littleport Depot,Premises,2310,General Rates,Portley Hill Depot,
East Cambridgeshire District Council,01/04/2016,East Cambs District Council,1133836,"2,807.20",,E Space North,Premises,2310,General Rates,E-Space North,
East Cambridgeshire District Council,01/04/2016,East Cambs District Council,1133837,"7,502.00",,E Space North,Premises,2310,General Rates,E-Space North,
East Cambridgeshire District Council,01/04/2016,East Cambs District Council,1133838,"2,855.60",,E Space North,Premises,2310,General Rates,E-Space North,
East Cambridgeshire District Council,01/04/2016,East Cambs District Council,1133840,"2,699.32",,E Space North,Premises,2310,General Rates,E-Space North,
East Cambridgeshire District Council,01/04/2016,East Cambs District Council,1133841,"4,820.90",,Industrial Development,Premises,2310,General Rates,8 St Thomas�s Place,
East Cambridgeshire District Council,01/04/2016,East Cambs District Council,1133842,"1,984.40",,E Space South,Premises,2310,General Rates,E-Space South,
East Cambridgeshire District Council,01/04/2016,East Cambs District Council,1133848,"17,643.50",,Thursday Market,Premises,2310,General Rates,"Market Tolls, Market Place",
East Cambridgeshire District Council,01/04/2016,East Cambs District Council,1133849,"104,370.00",,The Grange,Premises,2310,General Rates,The Grange,
East Cambridgeshire District Council,01/04/2016,East Cambs District Council,1133850,"8,107.00",,Oliver Cromwell House,Premises,2310,General Rates,29 St Marys St,
East Cambridgeshire District Council,01/04/2016,East Cambs District Council,1133851,"1,694.00",,Parking Of Vehicles,Premises,2310,General Rates,Clay St Car Park,
East Cambridgeshire District Council,01/04/2016,East Cambs District Council,1133852,"1,355.20",,Parking Of Vehicles,Premises,2310,General Rates,Fountain Lane,
East Cambridgeshire District Council,01/04/2016,East Cambs District Council,1133853,"7,260.00",,Parking Of Vehicles,Premises,2310,General Rates,Adj 18 St Mary�s St,
East Cambridgeshire District Council,01/04/2016,East Cambs District Council,1133854,"19,880.00",,Parking Of Vehicles,Premises,2310,General Rates,Barton Rd Car Park,
East Cambridgeshire District Council,01/04/2016,East Cambs District Council,1133855,"18,016.25",,Parking Of Vehicles,Premises,2310,General Rates,Newnham St,
East Cambridgeshire District Council,01/04/2016,East Cambs District Council,1133856,"10,188.50",,Parking Of Vehicles,Premises,2310,General Rates,Ship Lane,
East Cambridgeshire District Council,01/04/2016,East Cambs District Council,1133857,"28,329.00",,Parking Of Vehicles,Premises,2310,General Rates,Broad St Car Park,
East Cambridgeshire District Council,01/04/2016,East Cambs District Council,1133858,"4,259.20",,Parking Of Vehicles,Premises,2310,General Rates,"R/O 1 Main St, Littleport",
East Cambridgeshire District Council,01/04/2016,East Cambs District Council,1133859,"18,264.75",,Angel Drove Commuters Car Park,Premises,2310,General Rates,Angel Drove Car Park,
East Cambridgeshire District Council,01/04/2016,East Cambs District Council,1133860,"1,355.20",,"PC Causeway, Burwell",Premises,2310,General Rates,"R/O Library, The Causeway",
East Cambridgeshire District Council,01/04/2016,East Cambs District Council,1133861,"1,669.80",,"PC Main Street, Littleport",Premises,2310,General Rates,"Public conveniences Main St, Littleport",
East Cambridgeshire District Council,01/04/2016,East Cambs District Council,1133862,"1,427.80",,"PC Fountain Lane, Soham",Premises,2310,General Rates,"Fountain Lane, Soham",
East Cambridgeshire District Council,01/04/2016,East Cambs District Council,1133863,"4,162.40",,"PC Barton Road, Ely",Premises,2310,General Rates,"Barton Rd, Ely",
East Cambridgeshire District Council,01/04/2016,East Cambs District Council,1133864,"4,210.80",,"PC Cloisters, Ely",Premises,2310,General Rates,"Public conveniences, The Cloisters",
East Cambridgeshire District Council,01/04/2016,East Cambs District Council,1133865,"2,807.20",,"PC Newnham Street, Ely",Premises,2310,General Rates,"Newnham St, Ely",
East Cambridgeshire District Council,01/04/2016,East Cambs District Council,1133866,"1,052.70",,"PC Palace Green, Ely",Premises,2310,General Rates,Palace Green,
East Cambridgeshire District Council,01/04/2016,East Cambs District Council,1133867,"1,476.20",,"PC Sacrists/Choirs, Ely",Premises,2310,General Rates,"Steeple Row, Minster Place",
East Cambridgeshire District Council,01/04/2016,East Cambs District Council,1133868,"3,436.40",,"PC Ship Lane, Ely",Premises,2310,General Rates,Ship Lane,
East Cambridgeshire District Council,15/04/2016,Berrycroft Stores Ltd,635432,583.43,,Sanctuary Grasscutting,Premises,2810,Grounds Materials,2 outer clinic ace 5 ltr & 1 5 ltr pistol,
East Cambridgeshire District Council,18/04/2016,R Palmer & Sons Ltd,635467,560,,Open Spaces,Premises,2810,Grounds Materials,Bin Legs,
East Cambridgeshire District Council,28/04/2016,Berrycroft Stores Ltd,635562,"1,380.40",,Sanctuary Grasscutting,Premises,2810,Grounds Materials,1 pallet of feed weed mosskiller,
East Cambridgeshire District Council,01/04/2016,Premier Gardens Landscaping Specialists,635324,"5,250.00",,Country Park,Premises,2820,Grounds Contract Work,Access improvements to slope & surfacing,
East Cambridgeshire District Council,24/04/2016,C D Clowe,635525,870.46,,E Space North,Premises,2820,Grounds Contract Work,Replace exisiting Lamps - Car Park Lights ESpace,
East Cambridgeshire District Council,15/04/2016,Geoff Glover Van Sales,635433,628.01,,General Gang,Transport,3010,Vehicle Repairs,EO58GBZ,
East Cambridgeshire District Council,06/04/2016,TC Harrison Group Limited,5105066,250,,Recycling Reward Scheme,Transport,3010,Vehicle Repairs,Van repairs,Y
East Cambridgeshire District Council,01/04/2016,Commercial Services Trading Ltd,1133909,"-4,842.13",-368.29,Leased Cars,Transport,3051,Purchase Vehicles,Relates to invoice TH047572,
East Cambridgeshire District Council,01/04/2016,Hussey Knights Ltd,635296,850,,Printing/Copying,Supplies and Services,4011,Equipment - Repairs,,
East Cambridgeshire District Council,02/04/2016,Tailormade Metal Fabrications Ltd,635422,500,,Thursday Market,Supplies and Services,4011,Equipment - Repairs,Market Stall Assembly Pole,
East Cambridgeshire District Council,08/04/2016,NVCS Ltd,1133963,546,,The Grange,Supplies and Services,4012,Equipment - Vending Machines,Crane Stentorfield Food Machine 4/4/16-30/4/17,
East Cambridgeshire District Council,01/04/2016,PHS Group Plc,1133878,"1,816.96",,"PC Barton Road, Ely",Supplies and Services,4013,Equipment - Hire,"Public Toilets, Barton Rd",
East Cambridgeshire District Council,01/04/2016,PHS Group Plc,1133879,"2,076.31",,"PC Cloisters, Ely",Supplies and Services,4013,Equipment - Hire,"Public Toilets, The Cloisters",
East Cambridgeshire District Council,01/04/2016,PHS Group Plc,1133880,"1,491.31",,"PC Newnham Street, Ely",Supplies and Services,4013,Equipment - Hire,Newnham St Public Toilets,
East Cambridgeshire District Council,01/04/2016,PHS Group Plc,1133881,"1,366.32",,"PC Ship Lane, Ely",Supplies and Services,4013,Equipment - Hire,Ship Lane Car Park,
East Cambridgeshire District Council,01/04/2016,PHS Group Plc,1133882,938.8,,"PC Palace Green, Ely",Supplies and Services,4013,Equipment - Hire,Palace Green Public Toilets,
East Cambridgeshire District Council,01/04/2016,PHS Group Plc,1133883,"1,029.16",,"PC Sacrists/Choirs, Ely",Supplies and Services,4013,Equipment - Hire,"Public Toilets, Scarist Gate",
East Cambridgeshire District Council,01/04/2016,Hussey Knights Ltd,635296,800,,DMS,Supplies and Services,4014,Equipment - Maint. Agreements,,
East Cambridgeshire District Council,01/04/2016,Hussey Knights Ltd,635296,700,,Printing/Copying,Supplies and Services,4014,Equipment - Maint. Agreements,,
East Cambridgeshire District Council,01/04/2016,Canon (UK) Ltd,1133884,"1,611.13",,Printing/Copying,Supplies and Services,4014,Equipment - Maint. Agreements,OCE TCS500 Printer/Software/Scanner 1/4/16-31/3/17,
East Cambridgeshire District Council,01/04/2016,Neopost Ltd,1133892,544.95,,DMS,Supplies and Services,4014,Equipment - Maint. Agreements,Contract number 4200413433 16/4/16-15/4/17,
East Cambridgeshire District Council,02/04/2016,Park Retail Ltd t/as Love2Reward,635315,980,,Recycling Reward Scheme,Supplies and Services,4030,Materials - Purchase,Love2Shop Vouchers,
East Cambridgeshire District Council,18/04/2016,Aztek Services Ltd,635443,"2,300.00",,E Space North,Supplies and Services,4030,Materials - Purchase,Install IP Option (CCTV) - ESpace North,
East Cambridgeshire District Council,18/04/2016,Bunzl  Cleaning & Hygiene Supplies,635451,"1,118.95",,Public Conveniences,Supplies and Services,4030,Materials - Purchase,,
East Cambridgeshire District Council,18/04/2016,Bunzl  Cleaning & Hygiene Supplies,635452,689.79,,Cleaning,Supplies and Services,4030,Materials - Purchase,,
East Cambridgeshire District Council,06/04/2016,GS Workwear ,5105066,53.59,,Emergency Planning,Supplies and Services,4210,Protective Clothing,Rain Jacket,Y
East Cambridgeshire District Council,07/04/2016,Wolters Kluwer (UK) Ltd,1133958,844.96,,Payroll,Supplies and Services,4320,Publications & books,CCH Payroll Information Service 1/5/16-30/4/17,
East Cambridgeshire District Council,08/04/2016,Lexisnexis UK,1133960,860.86,,Legal,Supplies and Services,4320,Publications & books,Okes Magisterial Formulist 4/5/16-3/5/17,
East Cambridgeshire District Council,06/04/2016,Alamy ,5105066,245,,LATC,Supplies and Services,4321,Photography,Marketing Images,Y
East Cambridgeshire District Council,01/04/2016,Scanning Information Services,635515,"1,172.21",,Building Regulations Admin,Supplies and Services,4323,Microfilming,Documents Scanned & Indexed,
East Cambridgeshire District Council,30/03/2016,Sonovate Ltd,635299,871.85,,Env Health Food,Supplies and Services,4401,Agency Workers,Redacted Personal Data - Period Ending 27/3/16,
East Cambridgeshire District Council,05/04/2016,Foundation East Ltd,635321,"1,250.00",,Community Land Trusts,Supplies and Services,4401,Agency Workers,CLT consultancy March 16,
East Cambridgeshire District Council,11/04/2016,Barry Cornelius Associates Ltd,635373,"3,600.00",,Finance - Accountancy,Supplies and Services,4401,Agency Workers,Redacted Personal Data 9 days March 2016,
East Cambridgeshire District Council,11/04/2016,Matchtech Group Ltd,635378,"1,462.50",,Planning,Supplies and Services,4401,Agency Workers,Redacted Personal Data W/C 28/3/16,
East Cambridgeshire District Council,11/04/2016,Sonovate Ltd,635379,"1,065.22",,Env Health Food,Supplies and Services,4401,Agency Workers,Redacted Personal Data W/E 3/4/16,
East Cambridgeshire District Council,13/04/2016,Sonovate Ltd,635429,921.2,,Env Health Food,Supplies and Services,4401,Agency Workers,Redacted Personal Data - Period Ending 10/4/16,
East Cambridgeshire District Council,14/04/2016,LabourTech Recruitment Ltd,635438,541.62,,The Grange,Supplies and Services,4401,Agency Workers,Redacted Personal Data W/E 10/4/16,
East Cambridgeshire District Council,15/04/2016,Matchtech Group Ltd,635440,"1,462.50",,Planning,Supplies and Services,4401,Agency Workers,Redacted Personal Data W/C 4/4/16,
East Cambridgeshire District Council,20/04/2016,Sonovate Ltd,635516,904.75,,Env Health Food,Supplies and Services,4401,Agency Workers,Redacted Personal Data - Period Ending 17/4/16,
East Cambridgeshire District Council,22/04/2016,Matchtech Group Ltd,635537,"1,462.50",,Planning,Supplies and Services,4401,Agency Workers,Redacted Personal Data - Week Commencing 11/4/16,
East Cambridgeshire District Council,22/04/2016,Reed Specialist Recruitment Ltd,635539,728.16,,Finance - Accountancy,Supplies and Services,4401,Agency Workers,Redacted Personal Data - Week Ending 8/4/16,
East Cambridgeshire District Council,01/04/2016,G4S Cash Solutions (UK) Ltd,1133887,822.99,,Angel Drove Commuters Car Park,Supplies and Services,4412,Courier Service,Contract 3342504 1/4/16-30/4/16,
East Cambridgeshire District Council,11/04/2016,G4S Cash Solutions (UK) Ltd,1133980,822.99,,Angel Drove Commuters Car Park,Supplies and Services,4412,Courier Service,Contract 3342504 1/5/16-31/5/16,
East Cambridgeshire District Council,11/04/2016,Redacted Personal Data,635389,"1,200.00",,Homelessness Prevention,Supplies and Services,4421,Sanctuary Homelessness/Rent Deposit,Redacted Personal Data,
East Cambridgeshire District Council,21/04/2016,Redacted Personal Data,635478,"1,100.00",,Homelessness Prevention,Supplies and Services,4421,Sanctuary Homelessness/Rent Deposit,Redacted Personal Data,
East Cambridgeshire District Council,21/04/2016,Let 365 Co Ltd,635500,"1,812.50",,Homelessness Prevention,Supplies and Services,4421,Sanctuary Homelessness/Rent Deposit,Redacted Personal Data,
East Cambridgeshire District Council,29/04/2016,Redacted Personal Data,635574,950,,Homelessness Prevention,Supplies and Services,4421,Sanctuary Homelessness/Rent Deposit,Rent deposit scheme-Redacted Personal Data,
East Cambridgeshire District Council,06/04/2016,HM Lettings,5105066,775,,Homelessness Prevention,Supplies and Services,4421,Sanctuary Homelessness/Rent Deposit,Rent Deposit Redacted Personal Data,Y
East Cambridgeshire District Council,20/04/2016,Sanctuary Group,1134114,"2,102.52",,Homelessness,Supplies and Services,4423,Hostel Charges/Voids,Void re-charges Redacted Personal Data 1/1/16-3/4/16,
East Cambridgeshire District Council,20/04/2016,Sanctuary Group,1134115,"2,723.40",,Homelessness,Supplies and Services,4423,Hostel Charges/Voids,Void re-charges Redacted Personal Data 1/1/16-3/4/16,
East Cambridgeshire District Council,20/04/2016,Sanctuary Group,1134116,"1,993.48",,Homelessness,Supplies and Services,4423,Hostel Charges/Voids,Void re-charges Redacted Personal Data 1/1/16-3/4/16,
East Cambridgeshire District Council,15/04/2016,Jokensons Ltd,1134017,560,,Dog Warden Scheme,Supplies and Services,4424,Kennelling,Additional cover March 2016,
East Cambridgeshire District Council,06/04/2016,Serco ,5105066,190,,Emergency Planning,Supplies and Services,4426,Training & Exercises,Redacted Personal Data,Y
East Cambridgeshire District Council,02/04/2016,Foresight Consulting (UK) Ltd,635313,"12,295.60",,Corp.Man.Policy Research/Review,Supplies and Services,4430,Consultants Fees,Transformation Programme - ICT Review,
East Cambridgeshire District Council,05/04/2016,Strutt & Parker LLP,635320,"2,899.20",,North Ely,Supplies and Services,4430,Consultants Fees,Planning consultancy advice 5.5 days,
East Cambridgeshire District Council,05/04/2016,Foundation East Ltd,635321,833.33,,Community Land Trusts,Supplies and Services,4430,Consultants Fees,CLT consultancy March 16,
East Cambridgeshire District Council,05/04/2016,Urban Agenda,635322,"9,600.00",,Management Team,Supplies and Services,4430,Consultants Fees,Provision development conusltancy 1/3/16-31/1/3/16,
East Cambridgeshire District Council,05/04/2016,Redacted Personal Data,635323,"3,662.00",,Management Team,Supplies and Services,4430,Consultants Fees,Land & Development Services 1/3/16-29/3/16,
East Cambridgeshire District Council,05/04/2016,Peterborough City Council,635325,"42,896.00",,Local Plan Preparation,Supplies and Services,4430,Consultants Fees,Staff support services PCC Q4 15/16,
East Cambridgeshire District Council,06/04/2016,Beacon Planning Ltd,635338,"4,605.00",,Asset Management,Supplies and Services,4430,Consultants Fees,Site Assessment,
East Cambridgeshire District Council,03/04/2016,Mace Limited,635356,"60,066.00",,Leisure Centre,Supplies and Services,4430,Consultants Fees,East Cambs Leisure Centre - RIBA 4 -Mar 16,
East Cambridgeshire District Council,06/04/2016,Rubicon Insights,635364,"2,000.00",,Management Team,Supplies and Services,4430,Consultants Fees,Preliminary Consultancy & Shadow Chair Role 1/2/16-31/3/16,
East Cambridgeshire District Council,12/04/2016,Elysian Associates,635394,"1,280.00",,LATC,Supplies and Services,4430,Consultants Fees,East Cambs Trading Company VAT advisory,
East Cambridgeshire District Council,14/04/2016,Foresight Consulting (UK) Ltd,635493,"6,780.60",,Corp.Man.Policy Research/Review,Supplies and Services,4430,Consultants Fees,Transformation Programme-ICT,
East Cambridgeshire District Council,01/04/2016,South Cambridgeshire District Council,1133916,"7,174.38",,Infrastructure and Strategy,Supplies and Services,4430,Consultants Fees,Home-Link Management Costs 2015/16,
East Cambridgeshire District Council,15/04/2016,Mace Limited,1134106,"-9,944.00",,Leisure Centre,Supplies and Services,4430,Consultants Fees,Relates to Invoice 32835/10151246,
East Cambridgeshire District Council,04/04/2016,Leicester City Council,635355,"5,973.96",,Air Quality Monitoring,Supplies and Services,4434,Air Quality Monitoring,NO2 Monitor & Data 10/4/15-10/4/16,
East Cambridgeshire District Council,25/04/2016,Ernst & Young LLP,1134146,"1,550.50",,Corp.Man.Policy Research/Review,Supplies and Services,4441,External Audit Fees,Additional Fee - 2014/15 BEN01 Claim during Oct/Nov15 & DWP Letter response,
East Cambridgeshire District Council,01/04/2016,Peterborough City Council,635291,"2,092.19",,Legal,Supplies and Services,4443,Solicitors Fees,Legal Distribution Costs Q3,
East Cambridgeshire District Council,21/04/2016,Peterborough City Council,635490,"1,984.49",,Legal,Supplies and Services,4443,Solicitors Fees,Legal Time for Q4,
East Cambridgeshire District Council,06/04/2016,Money Claim ,5105066,25,,Riverside Management,Supplies and Services,4444,Court Costs,Court Costs,Y
East Cambridgeshire District Council,18/04/2016,Unit4 Business Software,635460,"1,350.00",,LATC,Supplies and Services,4452,IT ONLY - Upgrade consultants,22/3/16 - On-Site,
East Cambridgeshire District Council,26/04/2016,Northgate Public Services (UK) Ltd,635553,950,,Information Technology,Supplies and Services,4452,IT ONLY - Upgrade consultants,Paris Services to upgrade the IVR software,
East Cambridgeshire District Council,18/04/2016,Purchase Power,635487,"1,013.00",,E Space North,Supplies and Services,4510,Postage,Meter reset 17/3/16,
East Cambridgeshire District Council,15/04/2016,Neopost Ltd,1134016,"2,000.00",,DMS,Supplies and Services,4510,Postage,Postage recredit 29/3/16 &7/4/16,
East Cambridgeshire District Council,27/04/2016,Royal Mail Group plc,1134229,"3,029.00",,Police & Crime Commissioners Elections,Supplies and Services,4510,Postage,,
East Cambridgeshire District Council,06/04/2016,Virgin Media Payments Ltd - 743058701,1133936,"2,128.14",,The Grange,Supplies and Services,4520,Telephone,743058701,
East Cambridgeshire District Council,06/04/2016,Virgin Media Payments Ltd - 743058701,1133937,"2,067.80",,The Grange,Supplies and Services,4520,Telephone,743057801,
East Cambridgeshire District Council,03/04/2016,Virgin Media Payments - 923467,1134126,903.88,,Information Technology,Supplies and Services,4522,Contributions (IT Only CCN),Account 923467 1/4/16-30/4/16,
East Cambridgeshire District Council,22/04/2016,Verve Digital Ltd,635517,750,,E Space North,Supplies and Services,4540,Promotion Costs,CRM Development,
East Cambridgeshire District Council,22/03/2016,Phoenix Software Ltd,635339,"32,180.22",,Information Technology,Supplies and Services,4550,IT Licences,Windows Server/Enterprise/SQL Server,
East Cambridgeshire District Council,13/04/2016,Exacom Systems Ltd,635409,"8,080.00",,CIL - Admin,Supplies and Services,4550,IT Licences,Exacom Obligation Suite Annual Maintenance,
East Cambridgeshire District Council,01/04/2016,Idox Software Limited,1133869,"11,879.25",,Information Technology,Supplies and Services,4550,IT Licences,Strand Selcheck  & Strand Sems/Elreg Miantenance 1/4/16-31/3/17,
East Cambridgeshire District Council,01/04/2016,Idox Software Limited,1133870,"26,331.41",,Information Technology,Supplies and Services,4550,IT Licences,UFM Maintenance 1/4/16-31/3/17,
East Cambridgeshire District Council,01/04/2016,Frontier Software Plc,1133886,"9,501.61",,Information Technology,Supplies and Services,4550,IT Licences,Chris21 Software Annual Maintenance Year end 2/4/17,
East Cambridgeshire District Council,01/04/2016,Northgate Public Services (UK) Ltd,1133893,"4,761.25",,Information Technology,Supplies and Services,4550,IT Licences,Paris CR IM IVR IP Software support 1/4/16-31/3/17,
East Cambridgeshire District Council,01/04/2016,Northgate Public Services (UK) Ltd,1133894,"3,280.57",,Information Technology,Supplies and Services,4550,IT Licences,Paris BRP IP BCP PP WS Maintenance 1/4/16-31/3/17,
East Cambridgeshire District Council,05/04/2016,Vodafone Ltd,1133922,"1,131.54",,Information Technology,Supplies and Services,4550,IT Licences,GSI Convergence framework 1/1/16-31/3/16,
East Cambridgeshire District Council,06/04/2016,Firmstep Ltd,1133928,"20,265.00",,Information Technology,Supplies and Services,4550,IT Licences,Annual Licence 10/4/16-9/4/17,
East Cambridgeshire District Council,20/04/2016,Northgate Public Services (UK) Ltd,1134112,800,,Information Technology,Supplies and Services,4550,IT Licences,Support & Maint PARIS Bureau 2/6/16-1/6/17,
East Cambridgeshire District Council,06/04/2016,Satisnet ,5105066,998.07,,Information Technology,Supplies and Services,4550,IT Licences,Renew Tenable Nessus,Y
East Cambridgeshire District Council,31/03/2016,CCS Media Ltd,635306,"1,357.04",,Information Technology,Supplies and Services,4551,Hardware Purchases/Maint,HP Probook,
East Cambridgeshire District Council,20/03/2016,Printerland.co.uk,635318,839,,LATC,Supplies and Services,4551,Hardware Purchases/Maint,,
East Cambridgeshire District Council,24/03/2016,CCS Media Ltd,635412,508.28,,LATC,Supplies and Services,4551,Hardware Purchases/Maint,Iyama monitor,
East Cambridgeshire District Council,24/03/2016,CCS Media Ltd,635413,"2,512.49",,LATC,Supplies and Services,4551,Hardware Purchases/Maint,"Microsoft surface, HP Porbook",
East Cambridgeshire District Council,29/03/2016,CCS Media Ltd,635414,641.9,,LATC,Supplies and Services,4551,Hardware Purchases/Maint,HP Prodesk 400 G3,
East Cambridgeshire District Council,27/04/2016,CCS Media Ltd,635557,507.08,,Information Technology,Supplies and Services,4551,Hardware Purchases/Maint,HP Probook 650 G1 & hp PROFESSIONAL SLIM TOP LOAD,
East Cambridgeshire District Council,21/04/2016,Haddenham Parish Council,1134127,"5,000.00",,Community Land Trusts,Supplies and Services,4710,Grants,CLT set up Grant,
East Cambridgeshire District Council,15/04/2016,Spirus Marketing Ltd,635491,"2,960.00",,Community Safety,Supplies and Services,4713,Grants-Contributions,Anti-Terrorism Public Awareness Campaign,
East Cambridgeshire District Council,13/04/2016,East of England Local Government Association,635408,"1,100.00",,Human Resources,Supplies and Services,4780,Subscriptions-General,Subs to ePayCheck 2016-2019,
East Cambridgeshire District Council,14/04/2016,Ricardo-AEA Ltd,635420,735,,Air Quality Monitoring,Supplies and Services,4780,Subscriptions-General,EMAQ+ Subscription 2016-17,
East Cambridgeshire District Council,15/04/2016,Haymarket Media Group Ltd,635453,885,,Planning,Supplies and Services,4780,Subscriptions-General,DCP Online Renewals - Expiring 30/4/17,
East Cambridgeshire District Council,01/04/2016,NABMA,1133891,636,,Thursday Market,Supplies and Services,4780,Subscriptions-General,Annual Subs 16/17,
East Cambridgeshire District Council,07/04/2016,North Kesteven District Council,1133957,"2,645.00",,Finance - Accountancy,Supplies and Services,4780,Subscriptions-General,Rural Services Network - Service Charge 2016/17,
East Cambridgeshire District Council,08/04/2016,Local Government Association,1133961,"8,335.30",,Corp.Man.Policy Research/Review,Supplies and Services,4781,Subscriptions-LGA,LGA Subscription 16/17,
East Cambridgeshire District Council,01/04/2016,District Surveyors Association Ltd t/a LABC,1133888,"1,725.86",,Building Regulations Admin,Supplies and Services,4788,Subscriptions - LANTAC,LABC Service Fee 16/17,
East Cambridgeshire District Council,21/04/2016,Sanctuary Housing Association,635518,708.36,,Homelessness Prevention,Supplies and Services,4910,Other Payments,Rent Arrears -Redacted Personal Data,
East Cambridgeshire District Council,06/04/2016,ICO ,5105066,35,,Member & Committee Support,Supplies and Services,4913,Data Protect Act-Fee,DPA Renewals,Y
East Cambridgeshire District Council,14/04/2016,Redacted Personal Data,1134007,"2,771.30",,Home Improvement Agency Services,Supplies and Services,4938,Client Contribution,Redacted Personal Data - Part Payment,
East Cambridgeshire District Council,14/04/2016,"Bob Smith Heating, Plumbing & Electrical Ltd",1134008,"2,251.39",,Home Improvement Agency Services,Supplies and Services,4938,Client Contribution,Redacted Personal Data - Part payment Inv 41813,
East Cambridgeshire District Council,14/04/2016,Blue Gecko Fencing Company,1134015,"2,771.30",,Home Improvement Agency Services,Supplies and Services,4938,Client Contribution,Redacted Personal Data,
East Cambridgeshire District Council,21/04/2016,Lynch Healthcare,1134118,"1,134.64",,Home Improvement Agency Services,Supplies and Services,4938,Client Contribution,Redacted Personal Data,
East Cambridgeshire District Council,07/04/2016,Royal Mail Group plc,635488,787,,E Space North,Third Party Payments,5010,Contracted Services,Weekday Collection Fee - ESpace North,
East Cambridgeshire District Council,20/04/2016,Royal Mail Group plc,635489,787,,E Space South,Third Party Payments,5010,Contracted Services,Weekday Collection Fee - ESpace South,
East Cambridgeshire District Council,15/04/2016,Spirus Marketing Ltd,635492,"5,457.45",,Public Relations,Third Party Payments,5010,Contracted Services,March PR&Comms Service,
East Cambridgeshire District Council,11/04/2016,Veolia ES (UK) Ltd,1133979,"1,706.32",,Bulk Waste,Third Party Payments,5010,Contracted Services,Monthly contract 1/3/16-31/3/16,
East Cambridgeshire District Council,11/04/2016,Veolia ES (UK) Ltd,1133979,"30,603.34",,Recycling,Third Party Payments,5010,Contracted Services,Monthly contract 1/3/16-31/3/16,
East Cambridgeshire District Council,11/04/2016,Veolia ES (UK) Ltd,1133979,"30,603.34",,Recycling Organic Waste,Third Party Payments,5010,Contracted Services,Monthly contract 1/3/16-31/3/16,
East Cambridgeshire District Council,11/04/2016,Veolia ES (UK) Ltd,1133979,"72,321.57",,Refuse Collection,Third Party Payments,5010,Contracted Services,Monthly contract 1/3/16-31/3/16,
East Cambridgeshire District Council,11/04/2016,Veolia ES (UK) Ltd,1133979,"40,694.24",,Weekly Collection Support Grant,Third Party Payments,5010,Contracted Services,Monthly contract 1/3/16-31/3/16,
East Cambridgeshire District Council,11/04/2016,Veolia ES (UK) Ltd,1133979,"44,943.26",,Street Cleansing,Third Party Payments,5010,Contracted Services,Monthly contract 1/3/16-31/3/16,
East Cambridgeshire District Council,18/04/2016,SLM Ltd,1134107,"9,230.50",,Paradise Pool,Third Party Payments,5010,Contracted Services,April 2016 Management Fee,
East Cambridgeshire District Council,05/04/2016,Breckland Council,1133923,"38,358.90",,Council Tax Collection Costs,Third Party Payments,5020,ARP Services,Provision services 16/17,
East Cambridgeshire District Council,05/04/2016,Breckland Council,1133923,"47,059.53",,Housing Benefits,Third Party Payments,5020,ARP Services,Provision services 16/17,
East Cambridgeshire District Council,05/04/2016,Breckland Council,1133923,"9,716.74",,NNDR Collection costs,Third Party Payments,5020,ARP Services,Provision services 16/17,
East Cambridgeshire District Council,05/04/2016,Breckland Council,1133923,"-1,016.11",,Anglia Revenue Partnerships (ARP),Third Party Payments,5020,ARP Services,Provision services 16/17,
East Cambridgeshire District Council,12/04/2016,Elysian Associates,635393,"1,450.00",,Leisure Facility,Capital Costs,C302,Consultants Fees,Leisure Services VAT advisory,
East Cambridgeshire District Council,14/04/2016,Blue Gecko Fencing Company,1134006,"2,527.14",,Mandatory Disabled Fac.Grant,Capital Costs,C402,Home Imp.Grant 50% advance,Redacted Personal Data,
East Cambridgeshire District Council,14/04/2016,"Bob Smith Heating, Plumbing & Electrical Ltd",1134009,"2,668.61",,Mandatory Disabled Fac.Grant,Capital Costs,C404,Home Imp.Grant. Final payment,Redacted Personal Data,
East Cambridgeshire District Council,21/04/2016,Lynch Healthcare,1134117,"1,701.95",,Mandatory Disabled Fac.Grant,Capital Costs,C404,Home Imp.Grant. Final payment,Redacted Personal Data,
East Cambridgeshire District Council,21/04/2016,Stannah Lift Services Ltd,1134119,"5,268.00",,Mandatory Disabled Fac.Grant,Capital Costs,C404,Home Imp.Grant. Final payment,Redacted Personal Data,
East Cambridgeshire District Council,28/04/2016,Total Hygiene Limited,1134238,"3,964.00",,Mandatory Disabled Fac.Grant,Capital Costs,C404,Home Imp.Grant. Final payment,Redacted Personal Data,
East Cambridgeshire District Council,28/04/2016,Gas Heating Services Ltd,1134235,694,,Home Repair Assistance,Capital Costs,C405,Home Repair Grants,Redacted Personal Data,
East Cambridgeshire District Council,28/04/2016,Redacted Personal Data,1134236,"1,246.00",,Home Repair Assistance,Capital Costs,C405,Home Repair Grants,Redacted Personal Data,
East Cambridgeshire District Council,11/04/2016,Bottisham Parish Council,635415,719.01,,Section 106 Agreements,Section 106,P360,Section 106 Rev Payments,S106 Rev Grant Cont Ref 193 - Traffic Calming 10141/051,
East Cambridgeshire District Council,11/04/2016,Bottisham Parish Council,635416,"21,238.07",,Section 106 Agreements,Section 106,P360,Section 106 Rev Payments,S106 Rev Grant Cont Ref 193 - Traffic Calming - 10141/051,
East Cambridgeshire District Council,14/04/2016,Little Downham Parish Council,635417,"4,963.33",,Section 106 Agreements,Section 106,P360,Section 106 Rev Payments,S106 Rev Grant Cont Ref 240 - Replacement SeeSaw - 11111/016,
East Cambridgeshire District Council,08/04/2016,Town Mills Craft Centre Ltd,635426,815.18,,Cromwell House,Merchandising Stock,P730,Purchase - Souvenirs & Gifts,,
East Cambridgeshire District Council,20/04/2016,New English Teas,635485,536.08,,Cromwell House,Merchandising Stock,P730,Purchase - Souvenirs & Gifts,,
East Cambridgeshire District Council,25/04/2016,Cambridge Art,635547,537.75,,Cromwell House,Merchandising Stock,P730,Purchase - Souvenirs & Gifts,Fridge magnets,
,,,,"1,056,573.96",,,,,,,
